bitfinex-derivatives/quotes_BTCF0:USTF0_20241015
["timestamp","ask_amount","ask_price","bid_price","bid_amount"]
[1728978139021,0.075994,65824.0,65823.0,0.0106]
[1728978139221,1.815994,65824.0,65823.0,0.0106]
[1728978140822,1.86,65824.0,65809.0,0.0076]
[1728978141021,0.6008,65810.0,65799.0,0.0076]
[1728978141226,0.076021,65801.0,65800.0,0.076021]
[1728978141816,0.256021,65801.0,65800.0,0.076021]
[1728978142421,0.257021,65801.0,65800.0,0.080021]
[1728978142827,0.256021,65801.0,65800.0,0.076021]
[1728978143029,0.257021,65801.0,65800.0,0.080021]
[1728978143626,0.182,65801.0,65800.0,0.088021]
[1728978144724,0.25802,65801.0,65800.0,0.088021]
[1728978145320,0.25802,65801.0,65800.0,0.012]
[1728978154737,0.25802,65801.0,65800.0,0.088022]
[1728978155037,0.182,65801.0,65800.0,0.088022]
[1728978161239,0.25802,65801.0,65800.0,0.088022]
[1728978162046,0.25802,65801.0,65800.0,0.012]
[1728978162439,1.75802,65801.0,65800.0,0.012]
[1728978162642,1.75802,65801.0,65800.0,0.088022]
[1728978165347,1.75802,65801.0,65800.0,0.012]
[1728978168738,0.25802,65801.0,65800.0,0.012]
[1728978168948,0.25802,65801.0,65800.0,0.088022]
[1728978169854,0.19802,65801.0,65800.0,0.088022]
[1728978172154,0.19802,65801.0,65800.0,0.012]
[1728978173050,0.19802,65801.0,65800.0,0.088022]
[1728978174543,0.19802,65801.0,65800.0,0.012]
[1728978175752,0.67882,65801.0,65797.0,0.02267321]
[1728978175952,0.07603,65793.0,65792.0,0.0035]
[1728978176149,0.07603,65793.0,65782.0,0.49705063]
[1728978176150,0.076037,65788.0,65787.0,0.076035]
[1728978176348,0.196037,65788.0,65787.0,0.076035]
[1728978176545,0.196037,65788.0,65787.0,0.09944036]
[1728978177850,0.257037,65788.0,65787.0,0.10544036]
[1728978179150,0.258037,65788.0,65787.0,0.10544036]
[1728978181148,0.078037,65788.0,65787.0,0.10544036]
[1728978196068,0.002,65788.0,65787.0,0.46624036]
[1728978197867,0.122,65788.0,65787.0,0.46624036]
[1728978201064,0.002,65788.0,65787.0,0.46624036]
[1728978201254,0.002,65788.0,65787.0,0.58624036]
[1728978202458,0.002,65788.0,65787.0,0.46624036]
[1728978203870,0.002,65788.0,65787.0,0.10544036]
[1728978207360,0.002,65788.0,65787.0,0.15059174]
[1728978207559,0.002,65788.0,65787.0,0.10544036]
[1728978208969,0.002,65788.0,65787.0,0.15059174]
[1728978209473,0.002,65788.0,65787.0,0.10544036]
[1728978230289,0.002,65788.0,65787.0,0.15059174]
[1728978232290,0.002,65788.0,65787.0,0.10544036]
[1728978237291,0.002,65788.0,65787.0,0.1508573]
[1728978238498,0.002,65788.0,65787.0,0.10544036]
[1728978243296,0.002,65788.0,65787.0,0.1508573]
[1728978244190,0.002,65788.0,65787.0,0.10544036]
[1728978245387,0.002,65788.0,65787.0,0.1508573]
[1728978245588,0.002,65788.0,65787.0,0.10544036]
[1728978248590,0.078035,65788.0,65787.0,0.10544036]
[1728978249092,1.640335,65788.0,65787.0,0.1508573]
[1728978249292,1.640335,65788.0,65787.0,0.10544036]
[1728978250492,1.639335,65788.0,65787.0,0.10544036]
[1728978250999,1.638335,65788.0,65787.0,0.10144036]
[1728978251396,0.138335,65788.0,65787.0,0.10144036]
[1728978251587,0.138335,65788.0,65787.0,0.10044036]
[1728978253613,0.171635,65788.0,65787.0,0.10044036]
[1728978261098,0.0322,65788.0,65787.0,0.22044036]
[1728978261301,0.108235,65788.0,65787.0,0.22044036]
[1728978262106,0.108235,65788.0,65787.0,0.10044036]
[1728978275011,0.076035,65788.0,65787.0,0.10044036]
[1728978279715,0.12,65789.0,65788.0,0.076035]
[1728978279905,0.12,65789.0,65788.0,0.076435]
[1728978287226,0.3608,65793.0,65792.0,0.076031]
[1728978287425,0.3608,65793.0,65792.0,0.076431]
[1728978288912,0.3648,65793.0,65792.0,0.076431]
[1728978289821,0.3698,65793.0,65792.0,0.076431]
[1728978293926,0.44583,65793.0,65792.0,0.076431]
[1728978294115,0.3698,65793.0,65792.0,0.076431]
[1728978296933,0.009,65793.0,65792.0,0.076431]
[1728978299128,0.009,65793.0,65792.0,0.108831]
[1728978304136,0.009,65793.0,65792.0,0.15424794]
[1728978304336,0.009,65793.0,65792.0,0.108831]
[1728978305635,0.08503,65793.0,65792.0,0.196431]
[1728978305841,0.009,65793.0,65792.0,0.196431]
[1728978306038,0.08503,65793.0,65792.0,0.196431]
[1728978306541,0.08503,65793.0,65792.0,0.076431]
[1728978307133,0.009,65793.0,65792.0,0.076431]
[1728978316637,0.08503,65793.0,65792.0,0.076431]
[1728978316834,0.009,65793.0,65792.0,0.076431]
[1728978317037,0.08503,65793.0,65792.0,0.076431]
[1728978319044,0.009,65793.0,65792.0,0.076431]
[1728978319651,0.009,65793.0,65792.0,0.196431]
[1728978320040,0.08503,65793.0,65792.0,0.196431]
[1728978321543,0.08503,65793.0,65792.0,0.076431]
[1728978321944,0.11533,65793.0,65792.0,0.076431]
[1728978327149,0.11533,65793.0,65792.0,0.0004]
[1728978328553,0.11533,65793.0,65792.0,0.076431]
[1728978331060,0.23533,65793.0,65792.0,0.076431]
[1728978349191,0.23533,65793.0,65792.0,0.0004]
[1728978362095,0.23533,65793.0,65792.0,0.076431]
[1728978362096,0.009,65793.0,65792.0,0.076431]
[1728978362396,0.3608,65799.0,65792.0,0.196431]
[1728978362596,0.3608,65799.0,65798.0,0.076424]
[1728978362987,0.3608,65799.0,65798.0,0.142124]
[1728978363890,0.4918,65799.0,65798.0,0.142124]
[1728978364695,0.5018,65799.0,65798.0,0.142124]
[1728978365296,0.141,65799.0,65798.0,0.142124]
[1728978366995,0.217023,65799.0,65798.0,0.142124]
[1728978368993,0.217023,65799.0,65798.0,0.1652082]
[1728978375700,0.337023,65799.0,65798.0,0.0995082]
[1728978380412,0.217023,65799.0,65798.0,0.0995082]
[1728978381304,0.337023,65799.0,65798.0,0.0995082]
[1728978381506,0.217023,65799.0,65798.0,0.0995082]
[1728978387908,0.097023,65799.0,65798.0,0.0995082]
[1728978388112,0.217023,65799.0,65798.0,0.0995082]
[1728978389116,0.577823,65799.0,65798.0,0.0234842]
[1728978392015,0.217023,65799.0,65798.0,0.0995082]
[1728978393420,0.25426149,65799.0,65798.0,0.0995082]
[1728978393910,0.217023,65799.0,65798.0,0.0995082]
[1728978400922,0.217023,65799.0,65798.0,0.0234842]
[1728978402519,0.577823,65799.0,65798.0,0.0234842]
[1728978402913,0.697823,65799.0,65798.0,0.0234842]
[1728978404218,0.73506347,65799.0,65798.0,0.0234842]
[1728978406926,0.73506363,65799.0,65798.0,0.0234842]
[1728978408925,0.697823,65799.0,65798.0,0.0234842]
[1728978412929,0.337023,65799.0,65798.0,0.0234842]
[1728978413227,0.697823,65799.0,65798.0,0.0234842]
[1728978414217,0.697823,65799.0,65798.0,0.0004]
[1728978416131,0.337023,65799.0,65798.0,0.0004]
[1728978416430,0.697823,65799.0,65798.0,0.0004]
[1728978419024,0.337023,65799.0,65798.0,0.0004]
[1728978419226,0.697823,65799.0,65798.0,0.0004]
[1728978420727,0.72125914,65799.0,65798.0,0.0004]
[1728978422235,0.76794163,65799.0,65798.0,0.0004]
[1728978422629,0.76794163,65799.0,65790.0,0.0035]
[1728978422836,0.76794163,65799.0,65783.0,0.3684]
[1728978422837,0.076037,65787.0,65786.0,0.0035]
[1728978423135,0.076039,65785.0,65784.0,0.076038]
[1728978423330,0.12,65785.0,65784.0,0.07604]
[1728978423535,0.196039,65785.0,65784.0,0.07604]
[1728978425042,0.196039,65785.0,65784.0,0.07904]
[1728978426337,0.196039,65785.0,65784.0,0.08304]
[1728978426537,0.076039,65785.0,65784.0,0.08304]
[1728978426742,0.076039,65785.0,65784.0,0.20304]
[1728978429035,0.076036,65788.0,65787.0,0.076037]
[1728978429239,0.196036,65788.0,65787.0,0.076437]
[1728978430845,0.196036,65788.0,65787.0,0.077437]
[1728978432647,0.196036,65788.0,65787.0,0.078437]
[1728978445063,0.676836,65788.0,65787.0,0.0024]
[1728978446157,1.132836,65788.0,65787.0,0.0024]
[1728978446352,1.132836,65788.0,65776.0,0.076049]
[1728978446353,0.076046,65779.0,65776.0,0.076049]
[1728978446550,0.076048,65777.0,65776.0,0.076049]
[1728978446850,0.196048,65777.0,65776.0,0.076049]
[1728978447351,0.196048,65777.0,65776.0,0.02273529]
[1728978447551,0.196048,65777.0,65774.0,0.076051]
[1728978447747,0.12,65775.0,65774.0,0.076051]
[1728978449049,0.19605,65775.0,65774.0,0.076051]
[1728978449557,0.19705,65775.0,65774.0,0.005]
[1728978451060,0.19805,65775.0,65774.0,0.007]
[1728978452467,0.31805,65775.0,65774.0,0.007]
[1728978452951,0.38355,65775.0,65774.0,0.007]
[1728978455949,0.38155,65775.0,65774.0,0.002]
[1728978456152,0.38155,65775.0,65774.0,0.006]
[1728978456458,0.38155,65775.0,65765.0,0.0035]
[1728978456459,0.076061,65766.0,65765.0,0.0035]
[1728978456649,0.076062,65765.0,65764.0,0.076062]
[1728978457156,0.12,65766.0,65757.0,0.1235]
[1728978457347,0.3608,65768.0,65760.0,0.45943247]
[1728978457348,0.12,65761.0,65760.0,0.45943247]
[1728978458165,0.076064,65764.0,65763.0,0.076062]
[1728978458457,0.12,65764.0,65763.0,0.076462]
[1728978459359,0.196063,65764.0,65763.0,0.076462]
[1728978459553,0.076063,65764.0,65763.0,0.076462]
[1728978460257,0.077063,65764.0,65763.0,0.076462]
[1728978460459,0.197063,65764.0,65763.0,0.076462]
[1728978460655,0.198063,65764.0,65763.0,0.076462]
[1728978461256,0.198063,65764.0,65763.0,0.0004]
[1728978461654,0.198063,65764.0,65763.0,0.076464]
[1728978463265,0.198063,65764.0,65763.0,0.0004]
[1728978463654,0.198063,65764.0,65763.0,0.076464]
[1728978464660,0.198063,65764.0,65763.0,0.0004]
[1728978467975,0.078063,65764.0,65763.0,0.0004]
[1728978468159,0.198063,65764.0,65763.0,0.0004]
[1728978472770,1.698063,65764.0,65763.0,0.0004]
[1728978472970,1.578063,65764.0,65763.0,0.0004]
[1728978473165,1.698063,65764.0,65763.0,0.0004]
[1728978475070,1.818063,65764.0,65763.0,0.0004]
[1728978475962,1.698063,65764.0,65763.0,0.0004]
[1728978478272,1.818063,65764.0,65763.0,0.0004]
[1728978478469,0.076074,65755.0,65754.0,0.0035]
[1728978478671,0.076075,65754.0,65753.0,0.076075]
[1728978479270,0.076079,65751.0,65750.0,0.076079]
[1728978479470,0.196079,65751.0,65750.0,0.076079]
[1728978480073,0.12,65751.0,65750.0,0.076079]
[1728978480472,0.196078,65751.0,65750.0,0.076079]
[1728978480871,0.3608,65757.0,65749.0,0.207191]
[1728978480872,0.076077,65753.0,65752.0,0.076077]
[1728978481179,0.196077,65753.0,65752.0,0.076477]
[1728978482075,0.197077,65753.0,65752.0,0.076477]
[1728978482275,0.121,65753.0,65752.0,0.076477]
[1728978482576,0.197076,65753.0,65752.0,0.076477]
[1728978482968,0.198076,65753.0,65752.0,0.077477]
[1728978483468,0.122,65753.0,65752.0,0.077477]
[1728978483766,0.198076,65753.0,65752.0,0.077477]
[1728978484373,0.122,65753.0,65752.0,0.077477]
[1728978484579,0.198076,65753.0,65752.0,0.077477]
[1728978485571,0.122,65753.0,65752.0,0.077477]
[1728978487077,0.002,65753.0,65752.0,0.197477]
[1728978487384,0.3608,65765.0,65761.0,0.076067]
[1728978487385,0.00124,65764.0,65761.0,0.076067]
[1728978487577,0.0004,65764.0,65763.0,0.076064]
[1728978487883,0.0004,65764.0,65763.0,0.076464]
[1728978489378,0.0014,65764.0,65763.0,0.078464]
[1728978489582,0.077463,65764.0,65763.0,0.0024]
[1728978490879,0.077463,65764.0,65763.0,0.02555801]
[1728978491467,0.077463,65764.0,65763.0,0.02755801]
[1728978491468,0.078463,65764.0,65763.0,0.02755801]
[1728978491873,0.078463,65764.0,65763.0,0.10362201]
[1728978492172,0.078463,65764.0,65763.0,0.02755801]
[1728978493481,0.0024,65764.0,65763.0,0.10362201]
[1728978493681,0.1224,65764.0,65763.0,0.10362201]
[1728978493882,0.0024,65764.0,65763.0,0.10362201]
[1728978494082,0.1224,65764.0,65763.0,0.10362201]
[1728978498779,0.0024,65764.0,65763.0,0.10362201]
[1728978500172,0.1224,65764.0,65763.0,0.10362201]
[1728978509189,0.198463,65764.0,65763.0,0.10362201]
[1728978509699,0.1224,65764.0,65763.0,0.10362201]
[1728978509999,0.198463,65764.0,65763.0,0.10362201]
[1728978511198,0.198463,65764.0,65763.0,0.02755801]
[1728978511901,1.698463,65764.0,65763.0,0.02755801]
[1728978512395,0.318463,65764.0,65761.0,0.0004]
[1728978512599,0.076065,65762.0,65761.0,0.0004]
[1728978512898,1.576065,65762.0,65761.0,0.0004]
[1728978513487,1.576065,65762.0,65761.0,0.0024]
[1728978513697,1.576065,65762.0,65761.0,0.0034]
[1728978514490,1.696065,65762.0,65761.0,0.0034]
[1728978515188,1.698065,65762.0,65761.0,0.0004]
[1728978516793,1.578065,65762.0,65761.0,0.0004]
[1728978517097,1.698065,65762.0,65761.0,0.0004]
[1728978523998,0.198065,65762.0,65761.0,0.0004]
[1728978531103,0.558865,65762.0,65761.0,0.0004]
[1728978532799,0.678865,65762.0,65761.0,0.0004]
[1728978533201,0.558865,65762.0,65761.0,0.0004]
[1728978533807,0.678865,65762.0,65761.0,0.0004]
[1728978535213,0.558865,65762.0,65761.0,0.0004]
[1728978537411,0.678865,65762.0,65761.0,0.0004]
[1728978538207,0.558865,65762.0,65761.0,0.0004]
[1728978538599,0.438865,65762.0,65761.0,0.0004]
[1728978539008,0.558865,65762.0,65761.0,0.0004]
[1728978540010,2.058865,65762.0,65761.0,0.0004]
[1728978541611,1.698065,65762.0,65761.0,0.0004]
[1728978541811,0.198065,65762.0,65761.0,0.0004]
[1728978544300,0.002,65762.0,65761.0,0.076467]
[1728978545204,0.002,65762.0,65761.0,0.196467]
[1728978546118,0.002,65762.0,65761.0,1.252667]
[1728978550916,0.0008,65764.0,65763.0,0.076064]
[1728978551220,0.0008,65764.0,65763.0,0.076464]
[1728978551517,0.0008,65764.0,65763.0,0.532664]
[1728978552109,0.0018,65764.0,65763.0,0.532664]
[1728978552310,0.0028,65764.0,65763.0,0.532664]
[1728978556319,0.0035,65773.0,65763.0,1.4174]
[1728978556519,0.0035,65779.0,65778.0,0.076047]
[1728978556823,0.557684,65781.0,65779.0,0.076045]
[1728978557014,0.556844,65781.0,65780.0,0.0004]
[1728978557323,0.556844,65781.0,65780.0,0.076445]
[1728978557515,0.4808,65781.0,65780.0,0.076445]
[1728978557918,0.3608,65781.0,65780.0,0.076445]
[1728978558119,0.4808,65781.0,65780.0,0.076445]
[1728978558619,0.01,65781.0,65780.0,0.196445]
[1728978558826,0.01,65781.0,65780.0,0.557245]
[1728978559023,0.019,65781.0,65780.0,0.557245]
[1728978561019,0.019,65781.0,65780.0,0.437245]
[1728978565036,0.095044,65781.0,65780.0,0.437245]
[1728978565243,0.019,65781.0,65780.0,0.437245]
[1728978565532,0.139,65781.0,65780.0,0.437245]
[1728978567737,0.139,65781.0,65780.0,0.46033219]
[1728978568137,0.215044,65781.0,65780.0,0.46033219]
[1728978568929,0.215044,65781.0,65780.0,0.02348719]
[1728978569132,0.335044,65781.0,65780.0,0.0004]
[1728978569331,0.215044,65781.0,65780.0,0.0004]
[1728978569834,1.715044,65781.0,65780.0,0.0004]
[1728978570031,0.215044,65781.0,65780.0,0.0004]
[1728978575133,0.095044,65781.0,65780.0,0.0004]
[1728978575334,0.215044,65781.0,65780.0,0.0004]
[1728978576931,0.095044,65781.0,65780.0,0.0004]
[1728978577338,0.215044,65781.0,65780.0,0.0004]
[1728978579136,0.019,65781.0,65780.0,0.196445]
[1728978579337,0.019,65781.0,65780.0,0.557245]
[1728978579741,0.019,65781.0,65780.0,1.013325]
[1728978581953,0.019,65781.0,65780.0,0.557245]
[1728978603361,0.139,65781.0,65780.0,0.437245]
[1728978603559,0.695844,65781.0,65780.0,0.0004]
[1728978603953,0.076046,65779.0,65778.0,0.0004]
[1728978605067,0.083046,65779.0,65778.0,0.0004]
[1728978605257,0.090046,65779.0,65778.0,0.0004]
[1728978606159,0.59008,65779.0,65776.0,0.02260997]
[1728978606367,0.076053,65773.0,65772.0,0.0004]
[1728978606549,0.676853,65773.0,65766.0,0.436861]
[1728978606755,0.076054,65772.0,65766.0,0.436861]
[1728978606960,0.19606,65767.0,65766.0,0.436861]
[1728978608159,0.19606,65767.0,65766.0,0.438861]
[1728978608160,0.19706,65767.0,65766.0,0.438861]
[1728978608761,0.19806,65767.0,65766.0,0.46266732]
[1728978611457,0.19806,65767.0,65766.0,0.10186732]
[1728978611661,0.19806,65767.0,65766.0,0.02580632]
[1728978612369,0.07806,65767.0,65766.0,0.02580632]
[1728978612559,0.002,65767.0,65766.0,0.10186732]
[1728978613968,0.002,65767.0,65766.0,0.46266732]
[1728978621466,0.122,65767.0,65766.0,0.46266732]
[1728978627870,0.122,65767.0,65766.0,0.10186732]
[1728978628072,0.122,65767.0,65766.0,0.46266732]
[1728978630981,0.122,65767.0,65766.0,0.10186732]
[1728978631183,0.122,65767.0,65766.0,0.46266732]
[1728978635684,0.19806,65767.0,65766.0,0.46266732]
[1728978641885,0.122,65767.0,65766.0,0.46266732]
[1728978642391,0.19806,65767.0,65766.0,0.46266732]
[1728978645994,0.19806,65767.0,65766.0,0.10186732]
[1728978646196,0.19806,65767.0,65766.0,0.46266732]
[1728978648899,0.19806,65767.0,65766.0,0.50827593]
[1728978649092,0.19806,65767.0,65766.0,0.46266732]
[1728978656002,0.122,65767.0,65766.0,0.46266732]
[1728978656903,0.19806,65767.0,65766.0,0.46266732]
[1728978663007,0.19806,65767.0,65766.0,0.10186732]
[1728978667800,0.122,65767.0,65766.0,0.10186732]
[1728978667997,0.19806,65767.0,65766.0,0.10186732]
[1728978672608,0.122,65767.0,65766.0,0.10186732]
[1728978673517,0.002,65767.0,65766.0,0.10186732]
[1728978678912,0.002,65767.0,65766.0,0.55802732]
[1728978679815,0.002,65767.0,65766.0,0.10186732]
[1728978681305,0.07806,65767.0,65766.0,0.14751597]
[1728978681507,0.19806,65767.0,65766.0,0.02280632]
[1728978681706,0.19806,65767.0,65759.0,0.0106]
[1728978681707,0.076067,65761.0,65760.0,0.076067]
[1728978682015,0.316067,65761.0,65760.0,0.076067]
[1728978682917,0.076068,65760.0,65759.0,0.02311849]
[1728978683107,0.07607,65758.0,65757.0,0.076071]
[1728978683308,0.07607,65758.0,65757.0,0.09876766]
[1728978683710,0.19607,65758.0,65757.0,0.09876766]
[1728978684609,0.19707,65758.0,65757.0,0.09876766]
[1728978685718,0.121,65758.0,65757.0,0.09876766]
[1728978685918,0.241,65758.0,65757.0,0.09876766]
[1728978686413,0.31707,65758.0,65757.0,0.09876766]
[1728978686619,0.31807,65758.0,65757.0,0.09876766]
[1728978687219,0.31807,65758.0,65757.0,0.02269666]
[1728978687413,0.31807,65758.0,65755.0,0.0106]
[1728978687614,0.196072,65756.0,65755.0,0.076073]
[1728978689415,0.196072,65756.0,65755.0,0.09848574]
[1728978690712,0.196072,65756.0,65755.0,0.02241274]
[1728978690922,0.076077,65754.0,65753.0,0.076076]
[1728978691114,0.196077,65754.0,65753.0,0.076076]
[1728978691911,0.197077,65754.0,65753.0,0.076076]
[1728978692110,0.198077,65754.0,65753.0,0.076076]
[1728978695020,0.198077,65754.0,65751.0,0.02291553]
[1728978695226,0.076079,65752.0,65751.0,0.076076]
[1728978697423,0.077079,65752.0,65751.0,0.076076]
[1728978697923,0.078079,65752.0,65751.0,0.076076]
[1728978698525,0.002,65752.0,65751.0,0.076076]
[1728978699035,0.078077,65752.0,65751.0,0.076076]
[1728978715940,0.078077,65752.0,65751.0,0.436876]
[1728978717536,0.078077,65752.0,65751.0,0.076076]
[1728978719542,0.078077,65752.0,65751.0,0.12164136]
[1728978719743,0.078077,65752.0,65751.0,0.076076]
[1728978719948,0.078077,65752.0,65751.0,0.12164248]
[1728978720136,0.078077,65752.0,65751.0,0.076076]
[1728978720339,0.078077,65752.0,65751.0,0.1216625]
[1728978720541,0.078077,65752.0,65751.0,0.12166234]
[1728978720943,0.078077,65752.0,65751.0,0.076076]
[1728978722036,0.002,65752.0,65751.0,0.076076]
[1728978722236,0.122,65752.0,65751.0,0.076076]
[1728978722544,0.198077,65752.0,65751.0,0.076076]
[1728978722742,0.198077,65752.0,65751.0,0.12166641]
[1728978723137,0.198077,65752.0,65751.0,0.076076]
[1728978723542,0.198077,65752.0,65751.0,0.12166641]
[1728978723738,0.198077,65752.0,65751.0,0.076076]
[1728978727947,0.076079,65750.0,65749.0,0.09872408]
[1728978729248,0.078079,65750.0,65749.0,0.09872408]
[1728978736348,0.002,65750.0,65749.0,0.09872408]
[1728978746060,0.078079,65750.0,65749.0,0.09872408]
[1728978747661,0.198079,65750.0,65747.0,0.076082]
[1728978747965,0.316082,65748.0,65747.0,0.076082]
[1728978748264,0.076087,65745.0,65744.0,0.076083]
[1728978748560,0.316087,65745.0,65744.0,0.076083]
[1728978749357,0.196087,65745.0,65744.0,0.076083]
[1728978749557,0.121,65745.0,65744.0,0.076083]
[1728978749757,0.001,65745.0,65744.0,0.076083]
[1728978749959,0.121,65745.0,65744.0,0.076083]
[1728978750551,0.122,65745.0,65744.0,0.076083]
[1728978750754,0.002,65745.0,65744.0,0.196083]
[1728978751051,0.3608,65752.0,65744.0,0.676883]
[1728978751258,0.3608,65752.0,65751.0,0.196478]
[1728978751554,0.076071,65758.0,65757.0,0.076071]
[1728978751760,0.076071,65758.0,65757.0,0.076471]
[1728978752164,0.12,65759.0,65757.0,0.0004]
[1728978752460,0.076061,65766.0,65765.0,0.076062]
[1728978752677,0.196061,65766.0,65765.0,0.076062]
[1728978752869,0.09917921,65769.0,65768.0,0.076059]
[1728978753069,0.076057,65769.0,65768.0,0.0004]
[1728978753865,0.196057,65769.0,65768.0,0.0004]
[1728978754362,0.196057,65769.0,65768.0,0.076459]
[1728978755765,0.196057,65769.0,65768.0,0.0004]
[1728978755967,0.196057,65769.0,65768.0,0.02303143]
[1728978756168,0.196057,65769.0,65768.0,0.0004]
[1728978761986,0.196057,65769.0,65768.0,0.076459]
[1728978763175,0.0004,65773.0,65768.0,0.02339827]
[1728978763377,0.0004,65773.0,65772.0,0.076454]
[1728978763378,0.1204,65773.0,65772.0,0.076454]
[1728978763775,0.0004,65773.0,65772.0,0.196454]
[1728978764074,0.0004,65773.0,65772.0,0.228254]
[1728978764679,0.3608,65778.0,65772.0,1.284374]
[1728978764878,0.079517,65804.0,65777.0,0.6012]
[1728978764879,0.1235,65804.0,65777.0,0.6012]
[1728978765082,0.12,65801.0,65798.0,0.437224]
[1728978765272,0.1204,65799.0,65798.0,0.3612]
[1728978765580,0.0004,65799.0,65798.0,0.076424]
[1728978765780,0.1204,65799.0,65798.0,0.076424]
[1728978766875,0.1214,65799.0,65798.0,0.076424]
[1728978767080,0.2414,65799.0,65798.0,0.0004]
[1728978767271,0.317423,65799.0,65798.0,0.0004]
[1728978767470,0.327423,65799.0,65798.0,0.0004]
[1728978767667,0.336423,65799.0,65798.0,0.0004]
[1728978769176,0.344423,65799.0,65798.0,0.0004]
[1728978770078,0.375423,65799.0,65798.0,0.0004]
[1728978770976,0.375423,65799.0,65785.0,0.468698]
[1728978770977,0.076033,65790.0,65785.0,0.36176]
[1728978771173,0.24,65790.0,65786.0,0.076037]
[1728978771374,0.24,65790.0,65786.0,0.076038]
[1728978771375,0.12,65787.0,65786.0,0.076038]
[1728978771770,0.3608,65794.0,65792.0,0.07603]
[1728978771973,0.12,65793.0,65792.0,0.07603]
[1728978774174,0.124,65793.0,65792.0,0.07603]
[1728978774585,0.128,65793.0,65792.0,0.07603]
[1728978777480,0.008,65793.0,65792.0,0.07603]
[1728978777674,0.128,65793.0,65792.0,0.07603]
[1728978778385,0.128,65793.0,65792.0,0.09907873]
[1728978780575,0.008,65793.0,65792.0,0.57987873]
[1728978784695,0.008,65793.0,65792.0,0.45987873]
[1728978788993,0.128,65793.0,65792.0,0.45987873]
[1728978790797,0.008,65793.0,65792.0,0.45987873]
[1728978797499,0.008,65793.0,65792.0,0.09907873]
[1728978799104,0.008,65793.0,65792.0,0.14449773]
[1728978799498,0.008,65793.0,65792.0,0.09907873]
[1728978801203,0.008,65793.0,65792.0,0.14449773]
[1728978801406,0.008,65793.0,65792.0,0.09907873]
[1728978801599,0.008,65793.0,65792.0,0.14459626]
[1728978801801,0.008,65793.0,65792.0,0.09907873]
[1728978807405,0.008,65793.0,65792.0,0.45987873]
[1728978808909,0.008,65793.0,65792.0,0.5054307]
[1728978809099,0.008,65793.0,65792.0,0.45987873]
[1728978809505,0.008,65793.0,65792.0,0.50543718]
[1728978809708,0.008,65793.0,65792.0,0.45987873]
[1728978810909,0.008,65793.0,65792.0,0.50544015]
[1728978811713,0.008,65793.0,65792.0,0.50544353]
[1728978812508,0.008,65793.0,65792.0,0.45987873]
[1728978814807,0.128,65793.0,65792.0,0.45987873]
[1728978815017,0.20403,65793.0,65792.0,0.45987873]
[1728978816021,0.128,65793.0,65792.0,0.45987873]
[1728978816916,0.20403,65793.0,65792.0,0.45987873]
[1728978817516,0.128,65793.0,65792.0,0.45987873]
[1728978818410,0.20403,65793.0,65792.0,0.45987873]
[1728978819015,0.20403,65793.0,65792.0,0.09907873]
[1728978831622,0.20403,65793.0,65792.0,0.02304873]
[1728978831828,0.20403,65793.0,65785.0,0.0106]
[1728978832136,0.20403,65793.0,65784.0,0.443839]
[1728978832137,0.12,65788.0,65787.0,0.076037]
[1728978834035,0.196035,65788.0,65787.0,0.076037]
[1728978834530,0.12,65788.0,65787.0,0.077037]
[1728978834739,0.12,65788.0,65787.0,0.078037]
[1728978835835,0.0303,65794.0,65788.0,0.076035]
[1728978835836,0.076032,65792.0,65788.0,0.076035]
[1728978836043,0.076028,65796.0,65795.0,0.076027]
[1728978836238,0.076028,65796.0,65795.0,0.076427]
[1728978836434,0.204824,65799.0,65798.0,0.076024]
[1728978836737,0.0088,65799.0,65798.0,0.076424]
[1728978837140,0.084823,65799.0,65798.0,0.076424]
[1728978838843,0.094823,65799.0,65798.0,0.076424]
[1728978839042,0.094823,65799.0,65798.0,0.0004]
[1728978839436,0.104823,65799.0,65798.0,0.0004]
[1728978842946,0.224823,65799.0,65798.0,0.0004]
[1728978843347,0.104823,65799.0,65798.0,0.0004]
[1728978846749,0.224823,65799.0,65798.0,0.0004]
[1728978847139,0.585623,65799.0,65798.0,0.0004]
[1728978848048,0.62286308,65799.0,65798.0,0.0004]
[1728978849043,0.585623,65799.0,65798.0,0.0004]
[1728978852246,0.26206303,65799.0,65798.0,0.0004]
[1728978852553,0.62286303,65799.0,65798.0,0.0004]
[1728978852850,0.26206303,65799.0,65798.0,0.0004]
[1728978853058,0.62286303,65799.0,65798.0,0.0004]
[1728978853954,0.585623,65799.0,65798.0,0.0004]
[1728978856352,0.224823,65799.0,65798.0,0.0004]
[1728978856555,0.585623,65799.0,65798.0,0.0004]
[1728978858356,0.224823,65799.0,65798.0,0.0004]
[1728978858563,0.585623,65799.0,65798.0,0.0004]
[1728978860152,0.224823,65799.0,65798.0,0.0004]
[1728978860646,0.585623,65799.0,65798.0,0.0004]
[1728978863259,0.224823,65799.0,65798.0,0.0004]
[1728978863458,0.585623,65799.0,65798.0,0.0004]
[1728978863651,0.224823,65799.0,65798.0,0.0004]
[1728978863851,0.585623,65799.0,65798.0,0.0004]
[1728978864464,0.224823,65799.0,65798.0,0.0004]
[1728978864660,0.585623,65799.0,65798.0,0.0004]
[1728978867961,0.62286303,65799.0,65798.0,0.0004]
[1728978869171,0.585623,65799.0,65798.0,0.0004]
[1728978871361,0.62286418,65799.0,65798.0,0.0004]
[1728978873365,0.585623,65799.0,65798.0,0.0004]
[1728978877072,0.224823,65799.0,65798.0,0.0004]